[Event "*** SCC Grand Prix: Titled Tuesday Blitz"]
[Site "Chess.com"]
[Date "2020.10.13"]
[Round "9"]
[White "tdf98pantani"]
[Black "GigaQuparadze"]
[Result "0-1"]
[WhiteElo "2721"]
[BlackElo "2951"]
[TimeControl "180+1"]
[EndTime "11:43:50 PDT"]
[Termination "GigaQuparadze won by resignation"]

1. e4 {[%clk 0:03:00.9]} 1... c5 {[%clk 0:02:59.6]} 2. Nf3 {[%clk 0:03:00.7]}
2... e6 {[%clk 0:02:59.9]} 3. d4 {[%clk 0:02:59.1]} 3... cxd4 {[%clk 0:03:00.8]}
4. Nxd4 {[%clk 0:02:59.6]} 4... a6 {[%clk 0:03:00.9]} 5. Bd3 {[%clk 0:02:59.1]}
5... g6 {[%clk 0:02:58.1]} 6. O-O {[%clk 0:02:52.4]} 6... Bg7 {[%clk 0:02:57.9]}
7. Nb3 {[%clk 0:02:50]} 7... Nc6 {[%clk 0:02:57.3]} 8. c4 {[%clk 0:02:48.1]}
8... Nge7 {[%clk 0:02:56.6]} 9. Nc3 {[%clk 0:02:47.7]} 9... O-O {[%clk
0:02:56.4]} 10. Bg5 {[%clk 0:02:46.8]} 10... h6 {[%clk 0:02:51.6]} 11. Be3
{[%clk 0:02:46.5]} 11... d5 {[%clk 0:02:46.1]} 12. exd5 {[%clk 0:02:42.1]} 12...
exd5 {[%clk 0:02:47]} 13. cxd5 {[%clk 0:02:07.2]} 13... Nxd5 {[%clk 0:02:47.9]}
14. Nxd5 {[%clk 0:02:06.6]} 14... Qxd5 {[%clk 0:02:47.8]} 15. Qe2 {[%clk
0:02:03.8]} 15... Ne5 {[%clk 0:02:32.1]} 16. Rad1 {[%clk 0:01:58.7]} 16... Nxd3
{[%clk 0:02:29.2]} 17. Rxd3 {[%clk 0:01:58.5]} 17... Qb5 {[%clk 0:02:28.9]} 18.
Qd2 {[%clk 0:01:57.3]} 18... h5 {[%clk 0:02:00.4]} 19. Rc1 {[%clk 0:01:43.6]}
19... Bf5 {[%clk 0:01:34.4]} 20. Rd5 {[%clk 0:01:41.8]} 20... Qa4 {[%clk
0:01:34.5]} 21. Nd4 {[%clk 0:01:31.7]} 21... Be4 {[%clk 0:01:27.7]} 22. Ra5
{[%clk 0:01:29.8]} 22... Qd7 {[%clk 0:01:26.8]} 23. f3 {[%clk 0:01:26.7]} 23...
Bd5 {[%clk 0:01:12.9]} 24. Nf5 {[%clk 0:01:24]} 24... Qxf5 {[%clk 0:01:11.7]}
25. Rxd5 {[%clk 0:01:21.2]} 25... Qe6 {[%clk 0:01:11.7]} 26. b3 {[%clk
0:00:50.1]} 26... Rfe8 {[%clk 0:01:08.5]} 27. Bf2 {[%clk 0:00:49.6]} 27... Bh6
{[%clk 0:01:05.3]} 28. Qxh6 {[%clk 0:00:40.7]} 28... Qxd5 {[%clk 0:01:05.1]} 29.
h4 {[%clk 0:00:40.8]} 29... Rac8 {[%clk 0:01:03.1]} 30. Rxc8 {[%clk 0:00:27]}
30... Rxc8 {[%clk 0:01:02.5]} 31. Qf4 {[%clk 0:00:25.7]} 31... Rd8 {[%clk
0:01:00.6]} 32. Qh6 {[%clk 0:00:20.2]} 32... Qe5 {[%clk 0:00:57.8]} 33. Qc1
{[%clk 0:00:14.5]} 33... Qe2 {[%clk 0:00:56.5]} 34. Qc5 {[%clk 0:00:12.8]} 34...
Qd1+ {[%clk 0:00:54.7]} 35. Kh2 {[%clk 0:00:13]} 35... Qd6+ {[%clk 0:00:55.2]}
0-1

[Event "*** SCC Grand Prix: Titled Tuesday Blitz"]
[Site "Chess.com"]
[Date "2020.10.13"]
[Round "9"]
[White "blitzking1729"]
[Black "wannabe2700"]
[Result "1-0"]
[WhiteElo "2563"]
[BlackElo "2696"]
[TimeControl "180+1"]
[EndTime "11:43:55 PDT"]
[Termination "blitzking1729 won by resignation"]

1. d4 {[%clk 0:02:49.8]} 1... f5 {[%clk 0:02:58.5]} 2. Bg5 {[%clk 0:02:48.3]}
2... h6 {[%clk 0:02:58.5]} 3. Bh4 {[%clk 0:02:47.4]} 3... g5 {[%clk 0:02:59.1]}
4. Bg3 {[%clk 0:02:47.5]} 4... Bg7 {[%clk 0:02:59.4]} 5. e3 {[%clk 0:02:46.3]}
5... c5 {[%clk 0:02:59.8]} 6. c3 {[%clk 0:02:43.1]} 6... Qb6 {[%clk 0:02:59.9]}
7. Qc2 {[%clk 0:02:38.8]} 7... d5 {[%clk 0:02:52.5]} 8. h4 {[%clk 0:02:34.7]}
8... f4 {[%clk 0:02:41.9]} 9. dxc5 {[%clk 0:02:30.7]} 9... Qe6 {[%clk
0:02:26.5]} 10. Bh2 {[%clk 0:02:26.1]} 10... fxe3 {[%clk 0:02:08.1]} 11. fxe3
{[%clk 0:02:25.2]} 11... Qxe3+ {[%clk 0:01:23.4]} 12. Be2 {[%clk 0:02:21.7]}
12... Nf6 {[%clk 0:01:08]} 13. Na3 {[%clk 0:02:10.5]} 13... O-O {[%clk
0:00:46.3]} 14. Nf3 {[%clk 0:01:52]} 14... Nc6 {[%clk 0:00:28.2]} 15. hxg5
{[%clk 0:01:50]} 15... hxg5 {[%clk 0:00:27.9]} 16. Bg1 {[%clk 0:01:49]} 16...
Qe4 {[%clk 0:00:26.9]} 17. Qxe4 {[%clk 0:01:43.8]} 17... Nxe4 {[%clk 0:00:26.1]}
18. O-O-O {[%clk 0:01:40.3]} 18... e6 {[%clk 0:00:16.5]} 19. Bd3 {[%clk
0:01:39.9]} 19... g4 {[%clk 0:00:12.5]} 20. Nd2 {[%clk 0:01:36.7]} 20... Nxd2
{[%clk 0:00:07.7]} 21. Rxd2 {[%clk 0:01:35.6]} 21... Bd7 {[%clk 0:00:08.1]} 22.
Be3 {[%clk 0:01:35.1]} 22... Ne5 {[%clk 0:00:08]} 23. Bh7+ {[%clk 0:01:32.1]}
23... Kf7 {[%clk 0:00:08.2]} 24. Bg5 {[%clk 0:01:32]} 24... Bf6 {[%clk
0:00:06.8]} 25. Rf2 {[%clk 0:01:26.7]} 25... Ke7 {[%clk 0:00:06.8]} 26. Rxf6
{[%clk 0:01:25.4]} 26... Rxf6 {[%clk 0:00:07.7]} 27. Bg6 {[%clk 0:01:22.1]}
27... Nxg6 {[%clk 0:00:05.9]} 28. Rh7+ {[%clk 0:01:20.1]} 28... Kd8 {[%clk
0:00:05.3]} 29. Bxf6+ {[%clk 0:01:19.5]} 29... Kc7 {[%clk 0:00:05.9]} 30. Nb5+
{[%clk 0:01:18.1]} 30... Kc6 {[%clk 0:00:06.3]} 31. Nd4+ {[%clk 0:01:18.1]}
31... Kc7 {[%clk 0:00:06.7]} 32. Nxe6+ {[%clk 0:01:17.4]} 32... Kc6 {[%clk
0:00:07.3]} 33. Nd4+ {[%clk 0:01:15.9]} 33... Kc7 {[%clk 0:00:07.7]} 34. Rg7
{[%clk 0:01:15.8]} 34... Nf8 {[%clk 0:00:03.7]} 35. Be7 {[%clk 0:01:12.3]} 35...
Re8 {[%clk 0:00:02.9]} 36. Bxf8 {[%clk 0:01:11.3]} 36... Rxf8 {[%clk 0:00:03]}
37. Ne6+ {[%clk 0:01:11.3]} 37... Kc6 {[%clk 0:00:02.7]} 38. Nxf8 {[%clk
0:01:11]} 38... Bf5 {[%clk 0:00:03]} 39. b4 {[%clk 0:01:09.9]} 39... b6 {[%clk
0:00:02.5]} 40. Rg5 {[%clk 0:01:06.3]} 40... Bd3 {[%clk 0:00:02.4]} 41. Kd2
{[%clk 0:01:05.9]} 1-0

[Event "*** SCC Grand Prix: Titled Tuesday Blitz"]
[Site "Chess.com"]
[Date "2020.10.13"]
[Round "9"]
[White "TigrVShlyape"]
[Black "SergeyKarjakin"]
[Result "1-0"]
[WhiteElo "2873"]
[BlackElo "2906"]
[TimeControl "180+1"]
[EndTime "11:43:57 PDT"]
[Termination "TigrVShlyape won by resignation"]

1. d4 {[%clk 0:03:00.9]} 1... Nf6 {[%clk 0:03:00.4]} 2. Nf3 {[%clk 0:03:00.5]}
2... d5 {[%clk 0:02:59.4]} 3. Bf4 {[%clk 0:03:00.2]} 3... c5 {[%clk 0:02:58.4]}
4. e3 {[%clk 0:03:00.4]} 4... e6 {[%clk 0:02:45.5]} 5. c3 {[%clk 0:02:58.6]}
5... Qb6 {[%clk 0:02:43.8]} 6. Qb3 {[%clk 0:02:56.5]} 6... Be7 {[%clk 0:02:23]}
7. h3 {[%clk 0:02:54.3]} 7... O-O {[%clk 0:02:22.5]} 8. Nbd2 {[%clk 0:02:53.7]}
8... Nc6 {[%clk 0:02:11.9]} 9. Be2 {[%clk 0:02:52.1]} 9... Bd7 {[%clk
0:02:09.1]} 10. Ne5 {[%clk 0:02:45.8]} 10... Rfc8 {[%clk 0:02:02.9]} 11. Nxd7
{[%clk 0:02:35.8]} 11... Nxd7 {[%clk 0:02:03.8]} 12. O-O {[%clk 0:02:33.4]}
12... h6 {[%clk 0:01:55.8]} 13. Rfd1 {[%clk 0:02:31.4]} 13... a6 {[%clk
0:01:49.2]} 14. Qxb6 {[%clk 0:02:26.6]} 14... Nxb6 {[%clk 0:01:48.9]} 15. a4
{[%clk 0:02:22.6]} 15... Nd7 {[%clk 0:01:44.7]} 16. g4 {[%clk 0:02:12.6]} 16...
Kf8 {[%clk 0:01:40.6]} 17. Nb3 {[%clk 0:02:07.8]} 17... c4 {[%clk 0:01:28.1]}
18. Nd2 {[%clk 0:02:07.3]} 18... b5 {[%clk 0:01:28.4]} 19. e4 {[%clk 0:02:03.9]}
19... Bg5 {[%clk 0:01:20.5]} 20. exd5 {[%clk 0:01:56]} 20... exd5 {[%clk
0:01:19.1]} 21. Bd6+ {[%clk 0:01:55.4]} 21... Be7 {[%clk 0:01:18.8]} 22. Bg3
{[%clk 0:01:54.4]} 22... Nb6 {[%clk 0:01:17.3]} 23. axb5 {[%clk 0:01:52.7]}
23... axb5 {[%clk 0:01:18.2]} 24. Bf3 {[%clk 0:01:50.3]} 24... Bd8 {[%clk
0:00:59.5]} 25. Nf1 {[%clk 0:01:36.3]} 25... Ra4 {[%clk 0:00:32.1]} 26. Ne3
{[%clk 0:01:34.1]} 26... Ne7 {[%clk 0:00:31.9]} 27. Bd6 {[%clk 0:01:31.1]} 27...
Ke8 {[%clk 0:00:31.2]} 28. Bxe7 {[%clk 0:01:30.7]} 28... Bxe7 {[%clk 0:00:28.1]}
29. Nxd5 {[%clk 0:01:31.2]} 29... Nxd5 {[%clk 0:00:26.1]} 30. Bxd5 {[%clk
0:01:31.2]} 30... Rxa1 {[%clk 0:00:12.6]} 31. Rxa1 {[%clk 0:01:30.5]} 31... b4
{[%clk 0:00:10.9]} 32. Kf1 {[%clk 0:01:19.6]} 32... g6 {[%clk 0:00:08.5]} 33.
Ke2 {[%clk 0:01:16.2]} 33... Kf8 {[%clk 0:00:08.8]} 34. Ra8 {[%clk 0:01:15]}
34... Rxa8 {[%clk 0:00:07]} 35. Bxa8 {[%clk 0:01:14.7]} 35... bxc3 {[%clk
0:00:05.5]} 36. bxc3 {[%clk 0:01:14]} 36... Bd8 {[%clk 0:00:05.5]} 37. Bd5
{[%clk 0:01:13.5]} 37... Ba5 {[%clk 0:00:05.5]} 38. Kd2 {[%clk 0:01:14]} 38...
Ke7 {[%clk 0:00:05.7]} 39. Bxc4 {[%clk 0:01:14.1]} 39... f5 {[%clk 0:00:05.3]}
40. gxf5 {[%clk 0:01:13.1]} 40... gxf5 {[%clk 0:00:06.2]} 41. Kd3 {[%clk
0:01:11.2]} 41... Kd6 {[%clk 0:00:05.5]} 42. Ba6 {[%clk 0:01:09.3]} 1-0

[Event "*** SCC Grand Prix: Titled Tuesday Blitz"]
[Site "Chess.com"]
[Date "2020.10.13"]
[Round "9"]
[White "Gulkov_Igor"]
[Black "GregShahade"]
[Result "0-1"]
[WhiteElo "2480"]
[BlackElo "2655"]
[TimeControl "180+1"]
[EndTime "11:43:57 PDT"]
[Termination "GregShahade won by resignation"]

1. Nf3 {[%clk 0:03:00.9]} 1... Nf6 {[%clk 0:02:59.7]} 2. c4 {[%clk 0:02:59]}
2... g6 {[%clk 0:02:59.5]} 3. Nc3 {[%clk 0:02:58.7]} 3... d5 {[%clk 0:02:59.2]}
4. cxd5 {[%clk 0:02:58.1]} 4... Nxd5 {[%clk 0:02:59.4]} 5. Qa4+ {[%clk
0:02:58.4]} 5... Nc6 {[%clk 0:02:58.6]} 6. Ne5 {[%clk 0:02:57.8]} 6... Qd6
{[%clk 0:02:52.7]} 7. Nxc6 {[%clk 0:02:57.4]} 7... Qxc6 {[%clk 0:02:51.9]} 8.
Qxc6+ {[%clk 0:02:56.4]} 8... bxc6 {[%clk 0:02:52.8]} 9. g3 {[%clk 0:02:49.7]}
9... Bg7 {[%clk 0:02:47.9]} 10. Bg2 {[%clk 0:02:49.2]} 10... Be6 {[%clk
0:02:48.6]} 11. O-O {[%clk 0:02:45]} 11... O-O {[%clk 0:02:47.4]} 12. e3 {[%clk
0:02:30.6]} 12... Rfd8 {[%clk 0:02:27.2]} 13. d4 {[%clk 0:02:28.1]} 13... c5
{[%clk 0:02:24.8]} 14. dxc5 {[%clk 0:02:13.6]} 14... Nxc3 {[%clk 0:02:18.8]} 15.
bxc3 {[%clk 0:02:11.8]} 15... Rab8 {[%clk 0:02:12.5]} 16. Ba3 {[%clk 0:02:04.5]}
16... Bxc3 {[%clk 0:02:12.5]} 17. Rab1 {[%clk 0:01:38.9]} 17... Bxa2 {[%clk
0:02:07.6]} 18. Rb7 {[%clk 0:01:38.5]} 18... Rxb7 {[%clk 0:01:57]} 19. Bxb7
{[%clk 0:01:37.1]} 19... a5 {[%clk 0:01:50.1]} 20. c6 {[%clk 0:00:52.1]} 20...
Bb4 {[%clk 0:01:37.4]} 21. Bb2 {[%clk 0:00:48.8]} 21... Bc4 {[%clk 0:01:22.9]}
22. Rc1 {[%clk 0:00:47.7]} 22... Bb5 {[%clk 0:01:18.3]} 23. Be5 {[%clk
0:00:46.9]} 23... Bd6 {[%clk 0:01:15.4]} 24. Bxd6 {[%clk 0:00:46.1]} 24... Rxd6
{[%clk 0:01:11]} 25. Rc5 {[%clk 0:00:35.7]} 25... Rd1+ {[%clk 0:00:55.8]} 26.
Kg2 {[%clk 0:00:35.6]} 26... Rb1 {[%clk 0:00:56]} 27. Rd5 {[%clk 0:00:29.4]}
27... a4 {[%clk 0:00:47.8]} 28. Rd8+ {[%clk 0:00:19.8]} 28... Kg7 {[%clk
0:00:47.4]} 29. Ra8 {[%clk 0:00:19.6]} 29... Ra1 {[%clk 0:00:35.3]} 30. Ra7
{[%clk 0:00:16.5]} 30... a3 {[%clk 0:00:34.9]} 31. Ra5 {[%clk 0:00:14.8]} 31...
a2 {[%clk 0:00:27.2]} 0-1

[Event "*** SCC Grand Prix: Titled Tuesday Blitz"]
[Site "Chess.com"]
[Date "2020.10.13"]
[Round "9"]
[White "PSvidler"]
[Black "VitaliyBernadskiy"]
[Result "1-0"]
[WhiteElo "2904"]
[BlackElo "2746"]
[TimeControl "180+1"]
[EndTime "11:43:58 PDT"]
[Termination "PSvidler won on time"]

1. e4 {[%clk 0:03:00.9]} 1... e5 {[%clk 0:02:59.2]} 2. Nf3 {[%clk 0:03:00.5]}
2... Nc6 {[%clk 0:02:59.6]} 3. Bb5 {[%clk 0:02:59.8]} 3... a6 {[%clk 0:02:58.6]}
4. Ba4 {[%clk 0:02:59.8]} 4... Nf6 {[%clk 0:02:58.1]} 5. O-O {[%clk 0:02:59.3]}
5... Be7 {[%clk 0:02:58.4]} 6. d3 {[%clk 0:02:59]} 6... d6 {[%clk 0:02:56.2]} 7.
c3 {[%clk 0:02:58.3]} 7... O-O {[%clk 0:02:55.9]} 8. Re1 {[%clk 0:02:57.3]} 8...
Bg4 {[%clk 0:02:55.6]} 9. h3 {[%clk 0:02:56.8]} 9... Bh5 {[%clk 0:02:55.4]} 10.
Nbd2 {[%clk 0:02:56.5]} 10... Nd7 {[%clk 0:02:55.4]} 11. Bc2 {[%clk 0:02:48.8]}
11... Nc5 {[%clk 0:02:45.5]} 12. g4 {[%clk 0:02:47.8]} 12... Bg6 {[%clk
0:02:45.1]} 13. d4 {[%clk 0:02:47.9]} 13... exd4 {[%clk 0:02:45]} 14. cxd4
{[%clk 0:02:47.2]} 14... Nd7 {[%clk 0:02:45]} 15. Nf1 {[%clk 0:02:42.8]} 15...
d5 {[%clk 0:02:12.8]} 16. e5 {[%clk 0:02:42.6]} 16... Nb4 {[%clk 0:02:08.3]} 17.
Bxg6 {[%clk 0:02:39.7]} 17... hxg6 {[%clk 0:02:09.2]} 18. a3 {[%clk 0:02:37.3]}
18... Nc6 {[%clk 0:02:09.4]} 19. Ne3 {[%clk 0:02:36.5]} 19... Nb6 {[%clk
0:02:09]} 20. Qd3 {[%clk 0:02:26]} 20... Qd7 {[%clk 0:02:08.6]} 21. Kg2 {[%clk
0:02:24.6]} 21... Nd8 {[%clk 0:02:08.7]} 22. Nf1 {[%clk 0:02:03.3]} 22... Ne6
{[%clk 0:02:07.9]} 23. Ng3 {[%clk 0:02:02.2]} 23... Qb5 {[%clk 0:02:07.9]} 24.
Qc2 {[%clk 0:01:59]} 24... c5 {[%clk 0:02:02.3]} 25. dxc5 {[%clk 0:01:57.4]}
25... Qxc5 {[%clk 0:02:02]} 26. Qxc5 {[%clk 0:01:43.8]} 26... Bxc5 {[%clk
0:02:02.9]} 27. b3 {[%clk 0:01:43.9]} 27... d4 {[%clk 0:01:46]} 28. Ne4 {[%clk
0:01:41.4]} 28... Be7 {[%clk 0:01:40.4]} 29. Bg5 {[%clk 0:01:33]} 29... Bxg5
{[%clk 0:01:09.5]} 30. Nexg5 {[%clk 0:01:32.6]} 30... Rad8 {[%clk 0:00:56.5]}
31. Rad1 {[%clk 0:01:31.2]} 31... d3 {[%clk 0:00:48.3]} 32. Nxe6 {[%clk
0:01:24.9]} 32... fxe6 {[%clk 0:00:49.2]} 33. Ng5 {[%clk 0:01:25.4]} 33... Rfe8
{[%clk 0:00:48.8]} 34. Kg3 {[%clk 0:01:24.2]} 34... Rd5 {[%clk 0:00:41.4]} 35.
Re3 {[%clk 0:01:23.9]} 35... d2 {[%clk 0:00:35.5]} 36. Re2 {[%clk 0:01:24.2]}
36... Rd3+ {[%clk 0:00:34.9]} 37. f3 {[%clk 0:01:24.4]} 37... Rxb3 {[%clk
0:00:19.2]} 38. Rexd2 {[%clk 0:01:22.2]} 38... Nd5 {[%clk 0:00:17.8]} 39. Nxe6
{[%clk 0:01:18.3]} 39... Rxe6 {[%clk 0:00:17.4]} 40. Rxd5 {[%clk 0:01:18.3]}
40... Rxa3 {[%clk 0:00:17.6]} 41. Rd8+ {[%clk 0:01:18.1]} 41... Kh7 {[%clk
0:00:15]} 42. h4 {[%clk 0:01:14.8]} 42... Rxe5 {[%clk 0:00:08.3]} 43. Rf8 {[%clk
0:01:14.7]} 43... g5 {[%clk 0:00:06.4]} 44. h5 {[%clk 0:01:13.8]} 44... Re2
{[%clk 0:00:01.6]} 45. Rdd8 {[%clk 0:01:13.1]} 1-0

[Event "*** SCC Grand Prix: Titled Tuesday Blitz"]
[Site "Chess.com"]
[Date "2020.10.13"]
[Round "9"]
[White "Mazetovic"]
[Black "mjray79"]
[Result "1-0"]
[WhiteElo "2637"]
[BlackElo "2435"]
[TimeControl "180+1"]
[EndTime "11:44:01 PDT"]
[Termination "Mazetovic won by checkmate"]

1. e4 {[%clk 0:03:00.9]} 1... e5 {[%clk 0:02:59.6]} 2. Nf3 {[%clk 0:03:01.6]}
2... Nc6 {[%clk 0:02:59.1]} 3. Bb5 {[%clk 0:03:02.3]} 3... a6 {[%clk 0:02:58.1]}
4. Bxc6 {[%clk 0:03:02.5]} 4... dxc6 {[%clk 0:02:58.1]} 5. O-O {[%clk
0:03:02.5]} 5... Bg4 {[%clk 0:02:58.3]} 6. h3 {[%clk 0:03:01.6]} 6... h5 {[%clk
0:02:58.7]} 7. d3 {[%clk 0:03:01.7]} 7... Qf6 {[%clk 0:02:57.8]} 8. Be3 {[%clk
0:03:01.4]} 8... Bd6 {[%clk 0:02:54.8]} 9. Nbd2 {[%clk 0:03:01.1]} 9... Be6
{[%clk 0:02:49.3]} 10. Ng5 {[%clk 0:02:59.1]} 10... Ne7 {[%clk 0:02:46.3]} 11.
Nxe6 {[%clk 0:02:54.6]} 11... Qxe6 {[%clk 0:02:47.2]} 12. Nc4 {[%clk 0:02:54.7]}
12... O-O-O {[%clk 0:02:47.2]} 13. Nxd6+ {[%clk 0:02:51.8]} 13... cxd6 {[%clk
0:02:48.1]} 14. f4 {[%clk 0:02:51.5]} 14... exf4 {[%clk 0:02:45.9]} 15. Bxf4
{[%clk 0:02:51.6]} 15... Rdg8 {[%clk 0:02:42.6]} 16. Bh2 {[%clk 0:02:42.9]}
16... g5 {[%clk 0:02:41.7]} 17. Qf3 {[%clk 0:02:38.2]} 17... Rh7 {[%clk
0:02:37.6]} 18. Qf6 {[%clk 0:02:38]} 18... Kd7 {[%clk 0:02:28.7]} 19. Qd4 {[%clk
0:02:29.7]} 19... Rg6 {[%clk 0:02:23.7]} 20. Qa7 {[%clk 0:02:09.6]} 20... Kc7
{[%clk 0:02:16.1]} 21. c4 {[%clk 0:02:06.5]} 21... g4 {[%clk 0:02:15]} 22. hxg4
{[%clk 0:02:01.7]} 22... hxg4 {[%clk 0:02:11.5]} 23. Bg3 {[%clk 0:02:01.9]}
23... Rgh6 {[%clk 0:01:52.4]} 24. c5 {[%clk 0:01:45.6]} 24... Nc8 {[%clk
0:01:51.8]} 25. cxd6+ {[%clk 0:01:44.3]} 25... Nxd6 {[%clk 0:01:52]} 26. Qd4
{[%clk 0:01:38.1]} 26... Qg6 {[%clk 0:01:34.4]} 27. Kf2 {[%clk 0:01:34.9]} 27...
Qf6+ {[%clk 0:01:30.1]} 28. Ke3 {[%clk 0:01:29]} 28... Qe6 {[%clk 0:01:14.7]}
29. Rac1 {[%clk 0:01:22.6]} 29... Kc8 {[%clk 0:01:05.4]} 30. Qa7 {[%clk
0:01:10.2]} 30... f5 {[%clk 0:00:58]} 31. Rc5 {[%clk 0:01:02.1]} 31... Rf7
{[%clk 0:00:39.5]} 32. Re5 {[%clk 0:00:51.3]} 32... Qd7 {[%clk 0:00:31.7]} 33.
Qa8+ {[%clk 0:00:50.2]} 33... Kc7 {[%clk 0:00:31.3]} 34. Rfxf5 {[%clk
0:00:32.7]} 34... Nxf5+ {[%clk 0:00:21.3]} 35. Rxf5+ {[%clk 0:00:32.2]} 35...
Kb6 {[%clk 0:00:21.4]} 36. Rxf7 {[%clk 0:00:29.7]} 36... Qxf7 {[%clk 0:00:22.3]}
37. Qd8+ {[%clk 0:00:29.7]} 37... Ka7 {[%clk 0:00:22]} 38. Bb8+ {[%clk
0:00:29.1]} 38... Ka8 {[%clk 0:00:22.1]} 39. Bc7+ {[%clk 0:00:29.6]} 39... Ka7
{[%clk 0:00:22.2]} 40. Qb8# {[%clk 0:00:30.5]} 1-0

[Event "*** SCC Grand Prix: Titled Tuesday Blitz"]
[Site "Chess.com"]
[Date "2020.10.13"]
[Round "9"]
[White "kreonx"]
[Black "Sueetin"]
[Result "1-0"]
[WhiteElo "2370"]
[BlackElo "2270"]
[TimeControl "180+1"]
[EndTime "11:44:05 PDT"]
[Termination "kreonx won by checkmate"]

1. e4 {[%clk 0:02:57.6]} 1... e6 {[%clk 0:03:00]} 2. d4 {[%clk 0:02:54.4]} 2...
d5 {[%clk 0:03:00]} 3. Nd2 {[%clk 0:02:54.9]} 3... c5 {[%clk 0:02:59.1]} 4. Ngf3
{[%clk 0:02:51.2]} 4... cxd4 {[%clk 0:02:59]} 5. exd5 {[%clk 0:02:50.7]} 5...
Qxd5 {[%clk 0:02:59.9]} 6. Bc4 {[%clk 0:02:49.5]} 6... Qd7 {[%clk 0:02:57.5]} 7.
Nb3 {[%clk 0:02:45]} 7... Nc6 {[%clk 0:02:55.7]} 8. Nbxd4 {[%clk 0:02:42.4]}
8... Nxd4 {[%clk 0:02:54.1]} 9. Qxd4 {[%clk 0:02:41.6]} 9... Qxd4 {[%clk
0:02:48.6]} 10. Nxd4 {[%clk 0:02:42.5]} 10... a6 {[%clk 0:02:45.6]} 11. Be2
{[%clk 0:02:36.5]} 11... Nf6 {[%clk 0:02:40.4]} 12. Bf3 {[%clk 0:02:34.4]} 12...
Bd6 {[%clk 0:02:38.2]} 13. Be3 {[%clk 0:02:26.9]} 13... Ke7 {[%clk 0:02:33.8]}
14. O-O-O {[%clk 0:02:23.9]} 14... Rd8 {[%clk 0:02:19.9]} 15. Rhe1 {[%clk
0:02:09.3]} 15... Kf8 {[%clk 0:02:03.3]} 16. Nb3 {[%clk 0:02:03.1]} 16... Rb8
{[%clk 0:01:21.1]} 17. Ba7 {[%clk 0:01:47.2]} 17... Ra8 {[%clk 0:01:20.2]} 18.
Bb6 {[%clk 0:01:31.9]} 18... Rd7 {[%clk 0:01:20.3]} 19. Nc5 {[%clk 0:01:26.6]}
19... Bxc5 {[%clk 0:01:19.3]} 20. Bxc5+ {[%clk 0:01:21.6]} 20... Ke8 {[%clk
0:01:19.7]} 21. Bb6 {[%clk 0:01:03.5]} 21... Rb8 {[%clk 0:01:09.2]} 22. c4
{[%clk 0:00:59.3]} 22... Rxd1+ {[%clk 0:01:05]} 23. Rxd1 {[%clk 0:00:58.8]}
23... Bd7 {[%clk 0:01:05.5]} 24. b3 {[%clk 0:00:42]} 24... Rc8 {[%clk
0:00:59.3]} 25. Kb2 {[%clk 0:00:34.3]} 25... Bc6 {[%clk 0:00:54]} 26. Bxc6+
{[%clk 0:00:32.7]} 26... Rxc6 {[%clk 0:00:51.4]} 27. Bd4 {[%clk 0:00:23.1]}
27... Rd6 {[%clk 0:00:35.1]} 28. Kc2 {[%clk 0:00:23.5]} 28... Ne4 {[%clk
0:00:22.4]} 29. f3 {[%clk 0:00:21.8]} 29... Ng5 {[%clk 0:00:17.5]} 30. Bxg7
{[%clk 0:00:19.3]} 30... Rc6 {[%clk 0:00:15.5]} 31. Bf6 {[%clk 0:00:18.2]} 31...
h6 {[%clk 0:00:15.2]} 32. Rd8# {[%clk 0:00:17.7]} 1-0

[Event "*** SCC Grand Prix: Titled Tuesday Blitz"]
[Site "Chess.com"]
[Date "2020.10.13"]
[Round "9"]
[White "Matols"]
[Black "JiiHart"]
[Result "1-0"]
[WhiteElo "2236"]
[BlackElo "2071"]
[TimeControl "180+1"]
[EndTime "11:44:05 PDT"]
[Termination "Matols won on time"]

1. d4 {[%clk 0:03:00.9]} 1... Nf6 {[%clk 0:02:59.3]} 2. c4 {[%clk 0:03:00.5]}
2... e6 {[%clk 0:02:58.7]} 3. g3 {[%clk 0:03:00.5]} 3... c5 {[%clk 0:02:58.6]}
4. d5 {[%clk 0:03:00]} 4... exd5 {[%clk 0:02:58.7]} 5. cxd5 {[%clk 0:03:00.2]}
5... d6 {[%clk 0:02:59.1]} 6. Nc3 {[%clk 0:03:00.4]} 6... g6 {[%clk 0:02:59.5]}
7. Bg2 {[%clk 0:03:00.4]} 7... Bg7 {[%clk 0:03:00.2]} 8. Nf3 {[%clk 0:03:00.5]}
8... O-O {[%clk 0:03:00.1]} 9. O-O {[%clk 0:03:00.8]} 9... Re8 {[%clk
0:02:52.1]} 10. Nd2 {[%clk 0:02:57.3]} 10... a6 {[%clk 0:02:43]} 11. a4 {[%clk
0:02:56.7]} 11... Nbd7 {[%clk 0:02:38.5]} 12. h3 {[%clk 0:02:56.7]} 12... Rb8
{[%clk 0:02:33.4]} 13. a5 {[%clk 0:02:54.1]} 13... b5 {[%clk 0:02:31.4]} 14.
axb6 {[%clk 0:02:53.6]} 14... Nxb6 {[%clk 0:02:30.9]} 15. e4 {[%clk 0:02:48.5]}
15... Bb7 {[%clk 0:02:24.9]} 16. Re1 {[%clk 0:02:47.6]} 16... Qe7 {[%clk
0:02:13.9]} 17. Nf3 {[%clk 0:02:12.9]} 17... Nfd7 {[%clk 0:02:06.9]} 18. Bg5
{[%clk 0:02:11]} 18... Qf8 {[%clk 0:02:02.2]} 19. Qc2 {[%clk 0:02:04.4]} 19...
Nc4 {[%clk 0:01:57.4]} 20. Bf1 {[%clk 0:01:47.2]} 20... Nxb2 {[%clk 0:01:22.5]}
21. Qxb2 {[%clk 0:01:41.3]} 21... Bxd5 {[%clk 0:01:21.8]} 22. Qc1 {[%clk
0:01:32.5]} 22... Bb7 {[%clk 0:00:51.2]} 23. Rb1 {[%clk 0:01:28]} 23... h6
{[%clk 0:00:26.1]} 24. Bf4 {[%clk 0:01:26.2]} 24... Ne5 {[%clk 0:00:23.6]} 25.
Nxe5 {[%clk 0:01:21.8]} 25... dxe5 {[%clk 0:00:23.5]} 26. Be3 {[%clk 0:01:20.6]}
26... f5 {[%clk 0:00:15.6]} 27. Bc4+ {[%clk 0:01:18.7]} 27... Kh7 {[%clk
0:00:15.5]} 28. exf5 {[%clk 0:01:17.8]} 28... gxf5 {[%clk 0:00:15.2]} 29. Bd5
{[%clk 0:01:14.2]} 29... Bxd5 {[%clk 0:00:13]} 30. Nxd5 {[%clk 0:01:14.2]} 30...
f4 {[%clk 0:00:11.2]} 31. gxf4 {[%clk 0:01:11.7]} 31... exf4 {[%clk 0:00:11]}
32. Bxf4 {[%clk 0:01:10.3]} 32... Rbd8 {[%clk 0:00:08.7]} 33. Qc2+ {[%clk
0:01:07]} 33... Kh8 {[%clk 0:00:08.3]} 34. Rxe8 {[%clk 0:00:54.6]} 34... Qxe8
{[%clk 0:00:07.4]} 35. Ne3 {[%clk 0:00:52.1]} 35... Qe6 {[%clk 0:00:06.8]} 36.
Kh2 {[%clk 0:00:49.7]} 36... Rd4 {[%clk 0:00:05.1]} 37. Rb8+ {[%clk 0:00:46.5]}
1-0